bitfinex/quotes_SOLUSD_20260114
["timestamp","ask_amount","ask_price","bid_price","bid_amount"]
[1768391659403,3.25220354,143.73,143.7,1e-08]
[1768391659613,5.15731464,143.72,143.7,1e-08]
[1768391659810,3.25220354,143.73,143.7,1e-08]
[1768391660010,5.15707657,143.72,143.7,1e-08]
[1768391660307,3.25220354,143.73,143.7,1e-08]
[1768391660514,5.15453674,143.72,143.7,0.7167027]
[1768391660715,10.2098522,143.73,143.7,0.7167027]
[1768391660913,5.15452971,143.72,143.7,0.7167027]
[1768391661118,0.4677385,143.74,143.7,0.7167027]
[1768391661119,10.20937773,143.74,143.7,0.7167027]
[1768391661319,5.15472453,143.73,143.7,0.7167027]
[1768391661529,10.20890942,143.75,143.7,0.7167027]
[1768391661719,5.15323118,143.74,143.7,0.7167027]
[1768391661918,5.15323118,143.73,143.7,0.7167027]
[1768391662230,10.20890942,143.75,143.7,0.7167027]
[1768391662418,5.15182775,143.74,143.72,0.71670269]
[1768391662620,10.20890942,143.75,143.72,0.71670269]
[1768391662820,8.4039222,143.74,143.7,0.7167027]
[1768391663006,3.25220354,143.74,143.71,0.71670269]
[1768391664838,10.20932915,143.74,143.71,0.71670269]
[1768391666324,3.25220354,143.73,143.7,1e-08]
[1768391666526,3.25220354,143.72,143.7,1e-08]
[1768391666721,3.25220354,143.72,143.7,0.7167027]
[1768391667126,10.21034849,143.72,143.7,1e-08]
[1768391668936,10.67472856,143.71,143.69,0.1]
[1768391669116,3.25220354,143.71,143.69,0.1]
[1768391669322,3.35120354,143.7,143.67,0.1]
[1768391669536,3.35120354,143.7,143.67,0.81670269]
[1768391670447,10.31036191,143.7,143.67,0.81670269]
[1768391671439,3.25220354,143.69,143.67,0.81670269]
[1768391673838,3.35485405,143.68,143.66,0.225396]
[1768391674022,3.25220354,143.67,143.66,1e-08]
[1768391674224,37.05800338,143.69,143.64,0.1]
[1768391674424,3.25220354,143.65,143.61,0.71670269]
[1768391674730,3.25220354,143.64,143.61,0.71670269]
[1768391675039,0.36773849,143.65,143.62,0.71670269]
[1768391675243,0.36773849,143.67,143.62,0.71670269]
[1768391675429,3.25220354,143.66,143.63,0.67086453]
[1768391676029,10.31209434,143.66,143.63,0.67086453]
[1768391676536,0.099,143.66,143.63,0.67086453]
[1768391676740,3.25220354,143.65,143.63,0.67086453]
[1768391677128,3.25220354,143.66,143.63,0.67086453]
[1768391677622,3.25220354,143.66,143.63,7.63302234]
[1768391678538,3.25220354,143.66,143.64,0.67086453]
[1768391680240,10.21264622,143.67,143.64,0.67086453]
[1768391680419,3.25220354,143.67,143.65,0.67086453]
[1768391681039,7.05863406,143.69,143.65,0.67086453]
[1768391681240,3.25220354,143.68,143.65,0.67086453]
[1768391681948,6.95963406,143.69,143.65,0.67086453]
[1768391682124,3.25220354,143.68,143.65,0.67086453]
[1768391682739,7.05863406,143.69,143.65,0.67086453]
[1768391682927,3.25220354,143.67,143.65,0.67086453]
[1768391684853,7.3273502,143.69,143.65,7.63216783]
[1768391685060,12.7,143.7,143.66,0.67086453]
[1768391685061,10.21131807,143.7,143.66,0.67086453]
[1768391685350,3.25220354,143.71,143.67,0.67086453]
[1768391685928,3.25220354,143.7,143.67,0.67086453]
[1768391687147,10.21123639,143.7,143.67,0.67086453]
[1768391688140,10.21123639,143.7,143.67,7.63121105]
[1768391688662,3.25220354,143.7,143.68,0.67086453]
[1768391688839,7.05751188,143.71,143.68,0.67086453]
[1768391689154,3.25220354,143.7,143.67,7.63121105]
[1768391690040,3.25220354,143.69,143.67,7.63121105]
[1768391690245,3.25220354,143.69,143.67,0.67086453]
[1768391690930,0.099,143.74,143.69,0.67086453]
[1768391691190,3.25220354,143.73,143.69,0.67086453]
[1768391691344,3.25220354,143.73,143.7,0.67086453]
[1768391691547,6.9570057,143.74,143.7,0.67086453]
[1768391691746,3.25220354,143.73,143.7,0.67086453]
[1768391692076,3.25220354,143.71,143.7,0.67086453]
[1768391693451,3.25220354,143.71,143.68,6.95990829]
[1768391693650,0.44217174,143.7,143.68,6.95990829]
[1768391693851,3.69437528,143.7,143.67,6.96019703]
[1768391694668,3.25220354,143.69,143.66,19.66067867]
[1768391694882,3.25220354,143.68,143.66,6.96067867]
[1768391695165,3.25220354,143.68,143.64,30.10398039]
[1768391695166,3.25220354,143.68,143.65,6.96136442]
[1768391695570,0.68946696,143.69,143.65,7.63222895]
[1768391695767,3.9416705,143.69,143.65,7.63222895]
[1768391695978,0.43964858,143.71,143.67,0.67086453]
[1768391696147,3.69185212,143.71,143.67,0.67086453]
[1768391697164,3.69185212,143.71,143.67,7.6308433]
[1768391697953,3.94416843,143.7,143.67,7.6308433]
[1768391698172,3.94416843,143.7,143.67,6.95997877]
[1768391698849,3.25220354,143.69,143.66,7.63160222]
[1768391699463,7.65254813,143.72,143.67,0.67086453]
[1768391699666,3.69185212,143.71,143.67,0.67086453]
[1768391699857,0.69196489,143.7,143.67,0.67086453]
[1768391700057,0.69196489,143.7,143.66,6.96073769]
[1768391700267,3.94416843,143.7,143.66,7.63160222]
[1768391700986,10.90322902,143.7,143.66,7.63160222]
[1768391701353,7.65102548,143.7,143.66,7.63160222]
[1768391701553,10.90322902,143.7,143.66,7.63160222]
[1768391702072,3.94416843,143.7,143.66,7.63160222]
[1768391702273,0.69196489,143.7,143.67,0.67086453]
[1768391703456,0.69196489,143.7,143.67,7.63119047]
[1768391704247,3.25220354,143.71,143.68,0.67086453]
[1768391704453,3.25220354,143.73,143.69,0.67086453]
[1768391704647,19.2689264,143.75,143.69,0.67086453]
[1768391704848,5.57994932,143.74,143.7,0.67086453]
[1768391705053,5.14030074,143.73,143.7,0.67086453]
[1768391705557,12.0978236,143.73,143.7,0.67086453]
[1768391705757,6.95752286,143.73,143.7,0.67086453]
[1768391706159,6.95673056,143.75,143.71,0.71590981]
[1768391706365,5.14189621,143.74,143.71,0.71590981]
[1768391706572,10.2089341,143.75,143.71,0.71590981]
[1768391706753,5.14177587,143.74,143.71,0.71590981]
[1768391706954,6.95673056,143.75,143.71,0.71590981]
[1768391707278,10.2089341,143.75,143.71,0.71590981]
[1768391707458,3.25220354,143.75,143.72,0.71590981]
[1768391707659,10.20883341,143.75,143.72,0.71590981]
[1768391709672,10.5865632,143.76,143.73,0.71590981]
[1768391709890,10.5865632,143.76,143.69,15.95220354]
[1768391709891,9.08176078,143.75,143.71,0.71590981]
[1768391710168,0.68710988,143.75,143.71,7.67404447]
[1768391710357,3.25220354,143.75,143.72,0.71590981]
[1768391711078,3.25220354,143.74,143.71,7.67405294]
[1768391711679,10.2092389,143.74,143.71,0.71590981]
[1768391712378,10.6562171,143.74,143.71,0.71590981]
[1768391714177,10.2092389,143.74,143.71,0.71590981]
[1768391715666,6.95703536,143.74,143.71,0.71590981]
[1768391715868,10.2092389,143.74,143.71,0.71590981]
[1768391716283,6.95703536,143.74,143.71,0.71590981]
[1768391716579,10.2092389,143.74,143.71,0.71590981]
[1768391717277,9.03917178,143.74,143.71,0.71590981]
[1768391717479,0.68955995,143.72,143.59,34.92116123]
[1768391717676,2.08213642,143.65,143.59,2.18213642]
[1768391717856,2.08213642,143.65,143.6,12.7]
[1768391718057,0.68955995,143.67,143.6,39.15480582]
[1768391718278,2.08213642,143.66,143.6,39.15480582]
[1768391718962,2.08213642,143.67,143.61,2.08213642]
[1768391719570,2.08213642,143.67,143.64,0.65892471]
[1768391719775,2.08213642,143.66,143.64,0.65892471]
[1768391719990,2.08213642,143.66,143.64,13.35892471]
[1768391721587,9.04204733,143.68,143.65,0.65892471]
[1768391721767,2.08213642,143.68,143.65,0.65892471]
[1768391721962,7.66793778,143.69,143.65,0.65892471]
[1768391722196,2.08213642,143.67,143.65,0.65892471]
[1768391722684,2.08213642,143.68,143.65,0.65892471]
[1768391722995,2.08213642,143.69,143.65,0.65892471]
[1768391724077,2.79044776,143.69,143.65,7.61985013]
[1768391724283,2.08213642,143.68,143.65,7.61985013]
[1768391724663,2.08213642,143.68,143.66,0.42048717]
[1768391724879,2.08213642,143.68,143.67,12.7]
[1768391725369,7.66773941,143.69,143.67,12.7]
[1768391725570,2.08213642,143.68,143.67,12.7]
[1768391726485,2.08213642,143.68,143.66,0.42048717]
[1768391726669,2.08213642,143.68,143.66,13.12048717]
[1768391726870,2.08213642,143.68,143.66,0.42048717]
[1768391727078,2.08213642,143.68,143.66,7.3813016]
[1768391729186,2.08213642,143.68,143.65,12.7]
[1768391729187,2.08213642,143.67,143.63,0.42048717]
[1768391729374,2.08213642,143.67,143.57,36.90819184]
[1768391729375,2.08213642,143.67,143.65,0.42048717]
[1768391729691,0.70831134,143.68,143.63,0.42048717]
[1768391729895,2.08213642,143.67,143.63,0.42048717]
[1768391730095,2.79044776,143.67,143.63,0.42048717]
[1768391730396,2.79044776,143.67,143.64,6.96163595]
[1768391732696,2.08213642,143.65,143.61,0.65892471]
[1768391732876,2.08213642,143.66,143.62,7.62165451]
[1768391733076,2.08213642,143.66,143.63,0.65892471]
[1768391733695,2.08213642,143.65,143.63,0.65892471]
[1768391734995,2.05213643,143.65,143.63,0.65892471]
[1768391735579,6.96106708,143.66,143.63,0.65892471]
[1768391735782,2.08213642,143.65,143.63,0.65892471]
[1768391736191,0.68517659,143.64,143.59,0.1]
[1768391736396,4.31817659,143.62,143.49,0.1]
[1768391736585,14.74166495,143.69,143.49,0.1]
[1768391736586,0.68517659,143.65,143.61,2.08213642]
[1768391736888,0.68517659,143.65,143.62,12.7]
[1768391737078,0.68517659,143.65,143.62,14.78213642]
[1768391737288,0.68517659,143.65,143.63,6.96233377]
[1768391737597,0.68517659,143.65,143.62,6.96278639]
[1768391737902,2.76731301,143.67,143.64,12.7]
[1768391738201,5.1452276,143.66,143.64,12.7]
[1768391738409,0.68517659,143.66,143.64,12.7]
[1768391739307,0.68517659,143.65,143.61,6.96294299]
[1768391739598,0.68517659,143.65,143.6,17.40879576]
[1768391739599,2.76731301,143.65,143.62,16.03097042]
[1768391740088,0.68517659,143.65,143.62,16.03097042]
[1768391740893,0.68517659,143.66,143.62,33.43801679]
[1768391741883,0.68517659,143.66,143.62,35.52015321]
[1768391742084,0.68517659,143.68,143.62,35.52015321]
[1768391743286,2.76731301,143.68,143.62,35.52015321]
[1768391743604,0.68517659,143.62,143.49,0.1]
[1768391743915,2.08213642,143.64,143.51,2.08213642]
[1768391743916,2.76731301,143.57,143.51,2.08213642]
[1768391744084,0.68517659,143.57,143.51,2.08213642]
[1768391744478,2.08213642,143.58,143.49,0.1]
[1768391744479,2.08213642,143.58,143.52,14.78213642]
[1768391744982,2.08213642,143.58,143.52,39.68149252]
[1768391745206,2.08213642,143.57,143.52,6.96736673]
[1768391745404,6.96474706,143.59,143.51,32.71464252]
[1768391745587,2.08213642,143.57,143.51,32.71464252]
[1768391745791,2.08213642,143.57,143.52,0.51281435]
[1768391746394,2.08213642,143.57,143.53,12.7]
[1768391746594,2.76731301,143.57,143.53,12.7]
[1768391747216,0.68517659,143.56,143.54,12.7]
[1768391747720,0.68517659,143.56,143.54,19.66668563]
[1768391747901,0.68517659,143.56,143.54,6.96668563]
[1768391748227,0.68517659,143.56,143.55,12.7]
[1768391749621,2.08213642,143.57,143.55,12.7]
[1768391749823,0.68517659,143.58,143.55,19.66617553]
[1768391749994,2.76731301,143.58,143.55,19.66617553]
[1768391750512,2.08213642,143.57,143.55,12.7]
[1768391750716,2.76731301,143.56,143.53,6.96703464]
[1768391750913,2.76731301,143.56,143.54,12.7]
[1768391751207,0.68517659,143.57,143.55,12.7]
[1768391751419,2.76731301,143.57,143.55,12.7]
[1768391752819,0.68517659,143.56,143.55,12.7]
[1768391753205,0.68517659,143.56,143.55,11.975]
[1768391753609,2.08213642,143.57,143.55,11.975]
[1768391754212,2.76731301,143.57,143.55,11.975]
[1768391754712,2.76731301,143.57,143.54,6.96665076]
[1768391755015,0.68517659,143.57,143.55,12.7]
[1768391755319,2.76731301,143.57,143.55,12.7]
[1768391755712,2.76731301,143.57,143.53,7.66984102]
[1768391756016,2.08213642,143.56,143.54,12.7]
[1768391756408,2.76731301,143.56,143.54,12.7]
[1768391757700,2.76731301,143.56,143.55,12.7]
[1768391758110,2.08213642,143.57,143.55,12.7]
[1768391758304,2.08213642,143.57,143.55,13.40291407]
[1768391758916,2.08213642,143.57,143.54,6.96628012]
[1768391759114,2.08213642,143.57,143.56,12.7]
[1768391759416,2.08213642,143.57,143.55,12.7]
[1768391761213,2.76731301,143.57,143.54,19.66668874]
[1768391761414,2.08213642,143.57,143.54,20.36924495]
[1768391762926,2.08213642,143.56,143.53,7.66989777]
[1768391763221,2.08213642,143.56,143.54,12.7]
[1768391764317,7.65047643,143.57,143.54,12.7]
[1768391764522,2.08213642,143.56,143.54,12.7]
[1768391765119,2.08213642,143.56,143.54,19.66663071]
[1768391765326,2.08213642,143.57,143.54,20.33658737]
[1768391766423,0.68368406,143.58,143.54,20.33658737]
[1768391766619,2.08213642,143.57,143.55,0.66995666]
[1768391766827,2.08213642,143.58,143.55,0.66995666]
[1768391767027,2.08213642,143.57,143.55,0.66995666]
[1768391767605,2.08213642,143.56,143.54,12.7]
[1768391767815,7.64898143,143.57,143.54,12.7]
[1768391768026,2.08213642,143.56,143.54,12.7]
[1768391768241,2.76582048,143.56,143.54,12.7]
[1768391768528,2.76582048,143.56,143.55,12.7]
[1768391768904,2.08213642,143.56,143.54,6.96663375]
[1768391769112,2.08213642,143.56,143.55,12.7]
[1768391769329,2.08213642,143.56,143.52,6.96738418]
[1768391769330,0.68368406,143.55,143.52,6.96738418]
[1768391769510,59.18807881,143.61,143.53,11.03781435]
[1768391769708,2.08213642,143.55,143.53,11.03781435]
[1768391770610,2.08213642,143.55,143.53,12.7]
[1768391771023,9.04843649,143.55,143.51,7.63776877]
[1768391771329,6.9658669,143.56,143.52,19.66764178]
[1768391771512,2.08213642,143.55,143.52,20.33759844]
[1768391771930,2.03624281,143.55,143.52,19.66764178]
[1768391772503,2.03624281,143.55,143.52,20.33759844]
[1768391773241,2.03624281,143.55,143.52,7.63759844]
[1768391773438,2.03624281,143.55,143.53,12.7]
[1768391773809,9.00277572,143.55,143.5,7.63859777]
[1768391774034,9.00277572,143.55,143.52,12.7]
[1768391774636,9.04866933,143.55,143.52,12.7]
[1768391774832,6.96592725,143.56,143.52,12.7]
[1768391775036,2.08213642,143.55,143.52,12.7]
[1768391775911,17.4112835,143.59,143.53,6.96718456]
[1768391776235,2.08213642,143.56,143.53,6.96718456]
[1768391776623,2.08213642,143.55,143.53,6.96718456]
[1768391777925,2.08213642,143.55,143.52,20.33742173]
[1768391778523,6.96572932,143.56,143.52,20.33742173]
[1768391778728,2.08213642,143.55,143.53,12.7]
[1768391779332,3.26178764,143.55,143.53,12.7]
[1768391780142,3.26178764,143.55,143.53,19.66708551]
[1768391782030,3.26178764,143.55,143.53,12.7]
[1768391782237,3.26178764,143.55,143.52,19.66746025]
[1768391782644,3.26178764,143.54,143.52,19.66746025]
[1768391783252,3.26178764,143.54,143.51,7.65740291]
[1768391783451,3.26178764,143.54,143.52,12.7]
[1768391783657,6.96572932,143.56,143.52,12.7]
[1768391783832,3.26178764,143.54,143.52,12.7]
[1768391784351,19.2689264,143.6,143.52,20.356775]
[1768391784352,3.26178764,143.55,143.52,20.356775]
[1768391785550,43.64388286,143.59,143.53,0.68940184]
[1768391785747,43.64388286,143.59,143.49,3.36178764]
[1768391785748,3.26178764,143.54,143.49,0.78940184]
[1768391785952,3.26178764,143.52,143.5,7.65776209]
[1768391786136,3.26178764,143.52,143.5,0.68940184]
[1768391786747,3.26178764,143.52,143.5,13.38940184]
[1768391787154,3.26178764,143.53,143.51,0.68940184]
[1768391787342,5.15142298,143.52,143.51,0.68940184]
[1768391788058,3.26178764,143.54,143.51,0.68940184]
[1768391788255,3.26178764,143.54,143.51,13.38940184]
[1768391788463,10.22878178,143.54,143.51,13.38940184]
[1768391788643,30.0,143.52,143.51,13.38940184]
[1768391789355,10.22878178,143.54,143.51,13.38940184]
[1768391790143,10.91266073,143.54,143.51,12.7]
[1768391790547,3.26178764,143.53,143.51,12.7]
[1768391791149,3.26178764,143.53,143.51,13.38940184]
[1768391792357,3.26178764,143.54,143.52,0.68940184]
[1768391792659,3.26178764,143.53,143.52,12.7]
[1768391793649,3.26178764,143.53,143.5,7.657811]
[1768391793843,3.26178764,143.53,143.5,20.357811]
[1768391794258,7.10646094,143.54,143.5,20.357811]
[1768391794458,3.26178764,143.53,143.5,20.357811]
[1768391794659,3.26178764,143.53,143.5,13.38940184]
[1768391795746,3.26178764,143.53,143.5,20.35796822]
[1768391796069,7.10646094,143.54,143.5,20.35796822]
[1768391796268,3.26178764,143.53,143.5,20.35796822]
[1768391796763,3.26178764,143.53,143.51,0.7244003]
[1768391796963,0.69166707,143.55,143.51,0.7244003]
[1768391797163,3.26178764,143.53,143.51,0.7244003]
[1768391797368,3.26178764,143.52,143.5,7.69296668]
[1768391798464,3.26178764,143.53,143.5,7.69296668]
[1768391798669,3.26178764,143.53,143.5,20.39296668]
[1768391799153,3.26178764,143.52,143.5,7.69296668]
[1768391799351,7.09889208,143.54,143.5,7.69296668]
[1768391799655,3.26178764,143.52,143.5,7.69296668]
[1768391799859,7.09889208,143.54,143.5,7.69296668]
[1768391800052,3.26178764,143.52,143.5,7.69296668]
[1768391800253,3.26178764,143.53,143.5,7.69296668]
[1768391800452,5.16197277,143.52,143.51,0.7244003]
[1768391800766,5.16197277,143.52,143.5,7.69296668]
[1768391800968,3.26178764,143.53,143.5,7.69296668]
[1768391801156,3.26178764,143.53,143.49,12.8]
[1768391801157,8.4236994,143.52,143.49,7.7933215]
[1768391801360,3.26178764,143.52,143.49,7.7933215]
[1768391801672,3.26178764,143.52,143.5,6.96856234]
[1768391802266,3.26178764,143.52,143.49,0.8244003]
[1768391802267,3.26178764,143.52,143.49,7.79340937]
[1768391803455,10.9152733,143.53,143.49,7.79340937]
[1768391803660,5.16072558,143.52,143.49,7.79340937]
[1768391803862,10.9152733,143.53,143.49,7.79340937]
[1768391804060,5.16072558,143.52,143.49,7.79340937]
[1768391804275,10.9152733,143.53,143.49,7.79340937]
[1768391804474,5.29812829,143.52,143.49,7.79340937]
[1768391804672,3.26178764,143.5,143.47,0.8244003]
[1768391804870,3.26178764,143.5,143.47,7.7944076]
[1768391805472,3.29932795,143.51,143.47,7.7944076]
[1768391805975,0.03754031,143.51,143.47,7.7944076]
[1768391806172,7.00572645,143.51,143.47,7.7944076]
[1768391806475,8.45648127,143.5,143.47,7.0700073]
[1768391806656,3.29932795,143.5,143.47,7.0700073]
[1768391807273,3.26178764,143.5,143.47,7.7944076]
[1768391807505,0.03754031,143.51,143.47,7.7944076]
[1768391807655,8.41861509,143.5,143.47,7.7944076]
[1768391807857,0.03754031,143.51,143.47,7.7944076]
[1768391808177,8.41859795,143.5,143.47,7.7944076]
[1768391808385,0.03754031,143.52,143.48,0.7244003]
[1768391808558,8.41811499,143.51,143.48,0.7244003]
[1768391808756,3.26178764,143.51,143.48,0.7244003]
[1768391809477,3.26178764,143.5,143.47,7.7944076]
[1768391809675,8.41778778,143.5,143.47,7.7944076]
[1768391809974,3.26178764,143.5,143.47,7.7944076]
[1768391810682,3.29932795,143.51,143.47,7.7944076]
[1768391810883,5.15543058,143.5,143.47,7.7944076]
[1768391811183,3.29932795,143.51,143.47,7.7944076]
[1768391811387,5.15518353,143.5,143.47,7.7944076]
[1768391811591,0.03754031,143.52,143.48,0.7244003]
[1768391811789,5.15520655,143.51,143.48,0.7244003]
[1768391811972,5.15520655,143.5,143.48,0.7244003]
[1768391812287,3.26178764,143.51,143.48,0.7244003]
[1768391812488,5.15509501,143.5,143.48,0.7244003]
[1768391812689,3.26178764,143.51,143.48,7.69391019]
[1768391812888,5.15512301,143.5,143.48,7.69391019]
[1768391813191,3.26178764,143.51,143.48,7.69391019]
[1768391813372,5.15501093,143.5,143.48,7.69391019]
[1768391813572,3.26178764,143.51,143.48,0.7244003]
[1768391813790,5.15521934,143.5,143.48,0.7244003]
[1768391814091,10.23005772,143.51,143.48,7.69389868]
[1768391814092,3.26178764,143.51,143.48,7.69389868]
[1768391814279,10.26719511,143.52,143.48,7.69389868]
[1768391814585,5.15596168,143.51,143.48,7.69389868]
[1768391814764,10.26719511,143.52,143.48,7.69389868]
[1768391814968,5.19625438,143.51,143.48,7.69389868]
[1768391815171,7.00450406,143.54,143.49,0.7244003]
[1768391815388,5.15908266,143.53,143.49,0.7244003]
[1768391815581,5.15908266,143.52,143.49,0.7244003]
[1768391815780,10.2662917,143.54,143.5,7.69304141]
[1768391816091,5.15956001,143.53,143.5,7.69304141]
[1768391816263,5.15956001,143.52,143.5,7.69304141]
[1768391816468,10.2662917,143.54,143.5,7.69304141]
[1768391816685,0.03754031,143.52,143.48,6.96927095]
[1768391816882,5.15949947,143.51,143.48,0.7244003]
[1768391817084,0.03754031,143.52,143.48,0.7244003]
[1768391817293,5.15954828,143.51,143.48,0.7244003]
[1768391817607,3.29932795,143.52,143.49,6.96911735]
[1768391817773,5.15996171,143.51,143.5,0.7244003]
[1768391818292,3.26178764,143.52,143.5,0.7244003]
[1768391819187,10.22943047,143.53,143.5,0.7244003]
[1768391819392,5.1607322,143.52,143.5,0.7244003]
[1768391819589,10.22943047,143.53,143.5,0.7244003]
[1768391819792,5.16070623,143.52,143.5,0.7244003]
[1768391819993,6.96764283,143.53,143.5,0.7244003]
[1768391820198,5.16066971,143.52,143.5,0.7244003]
[1768391820505,8.42187213,143.51,143.46,0.7244003]
[1768391820673,8.42187213,143.51,143.48,0.7244003]
[1768391820674,5.16008449,143.5,143.48,0.7244003]
[1768391820881,3.26178764,143.51,143.48,0.7244003]
[1768391821081,5.16001507,143.5,143.48,0.7244003]
[1768391821275,3.26178764,143.51,143.48,7.69388409]
[1768391821601,5.1588463,143.5,143.48,7.69388409]
[1768391821797,6.9681928,143.51,143.48,0.7244003]
[1768391822003,3.26178764,143.49,143.47,0.7244003]
[1768391822377,3.26178764,143.5,143.47,0.7244003]
[1768391822575,5.15636732,143.49,143.47,0.7244003]
[1768391822895,10.23069076,143.5,143.46,0.7244003]
[1768391823203,5.15636112,143.49,143.46,0.7244003]
[1768391823376,10.23069076,143.5,143.46,0.7244003]
[1768391823697,10.23013202,143.51,143.46,0.7244003]
[1768391823871,5.15457311,143.5,143.46,0.7244003]
[1768391824075,10.23013202,143.51,143.46,0.7244003]
[1768391824276,5.15456699,143.5,143.46,0.7244003]
[1768391824478,10.23013202,143.51,143.46,0.7244003]
[1768391824676,10.23013202,143.51,143.45,24.39874519]
[1768391824677,5.15464282,143.5,143.47,7.69449857]
[1768391824895,10.23013202,143.51,143.47,7.69449857]
[1768391825083,5.15465771,143.5,143.48,0.7244003]
[1768391825278,10.23013202,143.51,143.48,0.7244003]
[1768391825485,5.15486772,143.5,143.48,0.7244003]
[1768391825694,10.23013202,143.51,143.48,0.7244003]
[1768391826008,5.15441361,143.5,143.48,0.7244003]
[1768391826310,6.96834438,143.51,143.48,0.7244003]
[1768391826494,5.15532655,143.5,143.48,0.7244003]
[1768391826802,10.23013202,143.51,143.48,0.7244003]
[1768391826999,5.15532478,143.5,143.48,0.7244003]
[1768391827201,10.23013202,143.51,143.48,0.7244003]
[1768391827383,5.15562908,143.5,143.48,0.7244003]
[1768391827582,10.23013202,143.51,143.48,0.7244003]
[1768391827794,5.15554639,143.5,143.48,0.7244003]
[1768391827993,10.23013202,143.51,143.48,0.7244003]
[1768391828194,5.15565918,143.5,143.48,0.7244003]
[1768391828404,10.23013202,143.51,143.48,0.7244003]
[1768391828604,5.15604563,143.5,143.48,7.6939761]
[1768391828807,19.68789744,143.52,143.49,0.70229129]
[1768391829103,8.4182663,143.51,143.49,0.70229129]
[1768391829299,3.26178764,143.51,143.49,0.70229129]
[1768391830093,22.9495392,143.52,143.48,6.96929267]
[1768391830395,8.41913849,143.51,143.48,7.67158396]
[1768391830581,5.15735085,143.5,143.46,7.67266725]
[1768391830782,19.68775156,143.52,143.45,0.70229129]
[1768391830999,5.15736777,143.51,143.46,0.70229129]
[1768391831205,8.41915541,143.5,143.46,7.67280073]
[1768391831404,5.15736777,143.49,143.46,7.67280073]
[1768391831602,37.10692658,143.52,143.46,0.70229129]
[1768391831802,3.26178764,143.5,143.46,0.70229129]
[1768391832005,5.15638096,143.49,143.46,7.67257584]
[1768391832208,5.15647375,143.49,143.46,7.67257584]
[1768391832391,3.26178764,143.5,143.46,7.67257584]
[1768391832590,5.15645336,143.49,143.46,7.67257584]
[1768391832798,3.26178764,143.49,143.44,7.67349851]
[1768391833000,24.38876725,143.51,143.45,6.97103904]
[1768391833202,5.15642155,143.5,143.46,7.67281078]
[1768391833389,5.15642155,143.49,143.46,7.67281078]
[1768391833601,8.41820919,143.49,143.46,7.67281078]
[1768391833890,3.26178764,143.5,143.46,7.67281078]
[1768391834089,5.15691804,143.49,143.46,0.70229129]
[1768391834299,10.23076422,143.5,143.46,0.70229129]
[1768391834501,5.15668046,143.49,143.46,0.70229129]
[1768391834693,10.23076422,143.5,143.46,0.70229129]
[1768391834892,5.15668046,143.49,143.46,0.70229129]
[1768391835190,10.23076422,143.5,143.46,0.70229129]
[1768391835396,5.15706143,143.49,143.46,0.70229129]
[1768391835604,10.23076422,143.5,143.46,0.70229129]
[1768391835806,5.15714291,143.49,143.46,0.70229129]
[1768391836004,10.23076422,143.5,143.46,0.70229129]
[1768391836207,5.15722528,143.49,143.46,0.70229129]
[1768391836410,10.23076422,143.5,143.46,0.70229129]
[1768391836712,5.15743698,143.49,143.47,0.70229129]
[1768391836913,10.23011566,143.51,143.47,0.70229129]
[1768391837213,5.15729468,143.5,143.46,10.93435157]
[1768391837411,5.15729468,143.49,143.46,7.67256393]
[1768391837594,6.96832802,143.51,143.46,7.67256393]
[1768391837789,5.15753412,143.5,143.46,7.67256393]
[1768391837994,5.15753412,143.49,143.47,0.70229129]
[1768391838208,3.26178764,143.51,143.47,0.70229129]
[1768391838514,5.15770536,143.5,143.47,0.70229129]
[1768391838715,5.15770536,143.49,143.47,0.70229129]
[1768391839010,19.68768986,143.52,143.48,0.70229129]
[1768391839191,5.15759646,143.51,143.48,0.70229129]
[1768391839393,5.15759646,143.5,143.48,0.70229129]
[1768391839714,21.77623881,143.52,143.48,0.70229129]
[1768391839917,5.15827406,143.51,143.48,0.70229129]
[1768391840210,12.72,143.52,143.5,0.71794023]
[1768391841112,12.72,143.52,143.49,2.08854895]
[1768391841418,13.37722507,143.52,143.49,2.80648918]
[1768391841601,12.72,143.52,143.49,2.80648918]
[1768391841807,0.65722507,143.53,143.5,0.71794023]
[1768391842194,0.65722507,143.53,143.5,7.6864225]
[1768391843911,0.65722507,143.53,143.5,9.77497145]
[1768391844290,0.65722507,143.53,143.5,7.6864225]
[1768391849218,0.65722507,143.53,143.5,7.62642251]
[1768391850817,0.65722507,143.53,143.49,6.96912676]
[1768391851415,0.65722507,143.53,143.49,7.68706699]
[1768391851821,0.65722507,143.53,143.5,0.71794023]
[1768391852621,0.65722507,143.53,143.5,7.68627616]
[1768391854014,2.74577402,143.53,143.5,7.68627616]
[1768391854216,0.65722507,143.52,143.5,6.96833593]
[1768391854824,0.65722507,143.52,143.49,6.96912676]
[1768391855007,0.65722507,143.52,143.49,7.68706699]
[1768391857323,0.71621015,143.53,143.49,9.77561594]
[1768391858004,5.87214792,143.52,143.49,7.6909612]
[1768391858212,0.71621015,143.52,143.49,7.6909612]
[1768391858519,2.08854895,143.53,143.49,7.6909612]
[1768391858718,5.15582098,143.52,143.49,7.6909612]